bitfinex-derivatives/quotes_BNBF0:USTF0_20251010
["timestamp","ask_amount","ask_price","bid_price","bid_amount"]
[1760124541475,1.18265685,1223.4,1217.5,0.51036097]
[1760124541674,1.18265685,1223.7,1217.6,0.51036097]
[1760124541877,1.18265685,1223.8,1217.7,0.51036097]
[1760124542078,1.18265685,1223.7,1217.4,0.1426709]
[1760124542278,1.18265685,1223.6,1217.5,0.51046253]
[1760124542579,2.72981337,1225.7,1217.4,0.1426709]
[1760124542580,0.14261418,1222.3,1217.6,0.51046253]
[1760124542880,0.14261418,1222.3,1217.4,0.1426709]
[1760124543076,0.14261418,1222.3,1217.5,0.51050501]
[1760124543276,0.14261418,1222.3,1217.4,0.1426709]
[1760124543577,0.14261418,1222.3,1217.5,0.51069986]
[1760124543878,0.14261418,1222.3,1217.4,0.1426709]
[1760124544179,0.14261418,1222.3,1217.5,0.51070038]
[1760124544374,0.14261418,1222.3,1217.6,0.51070038]
[1760124544573,0.14261418,1222.3,1217.7,0.51070038]
[1760124544777,0.14261418,1222.3,1217.4,0.1426709]
[1760124544978,0.14261418,1222.3,1217.5,0.51986603]
[1760124545179,0.14261418,1222.3,1217.6,0.51986603]
[1760124545475,0.14261418,1222.3,1217.4,0.1426709]
[1760124545675,0.14261418,1222.3,1217.5,0.52003455]
[1760124545880,0.14261418,1222.3,1217.4,0.1426709]
[1760124545881,0.14261418,1222.3,1217.6,0.52003455]
[1760124546077,0.14261418,1222.3,1217.4,0.1426709]
[1760124546284,0.14261418,1222.3,1217.5,0.52003442]
[1760124546578,0.14261418,1222.3,1217.6,0.52014681]
[1760124546782,0.14261418,1222.3,1217.7,0.52014681]
[1760124546977,0.14261418,1222.3,1217.8,0.52014681]
[1760124547181,0.14261418,1222.3,1217.9,0.52014681]
[1760124547378,0.14261418,1222.3,1218.0,0.52014681]
[1760124547581,0.14261418,1222.3,1218.1,0.52014681]
[1760124547781,0.14261418,1222.3,1217.4,0.1426709]
[1760124547979,0.14261418,1222.3,1217.5,0.52027723]
[1760124548178,0.14261418,1222.3,1217.6,0.52027723]
[1760124548382,0.14261418,1222.3,1217.7,0.52027723]
[1760124548579,0.14261418,1222.3,1217.8,0.52027723]
[1760124548883,0.14261418,1222.3,1217.4,0.1426709]
[1760124549185,0.14261418,1222.3,1217.5,0.52061562]
[1760124549384,0.14261418,1222.3,1217.6,0.52061562]
[1760124549584,0.14261418,1222.3,1217.4,0.1426709]
[1760124550186,0.14261418,1222.3,1217.5,0.52122616]
[1760124550484,0.14261418,1222.3,1217.4,0.1426709]
[1760124550681,0.14261418,1222.3,1217.5,0.52171512]
[1760124550885,0.14261418,1222.3,1217.4,0.1426709]
[1760124551185,0.14261418,1222.3,1217.5,0.5217417]
[1760124551389,0.14261418,1222.3,1217.4,0.1426709]
[1760124551686,0.14261418,1222.3,1217.5,0.52218658]
[1760124551886,0.14261418,1222.3,1217.4,0.1426709]
[1760124552082,0.14261418,1222.3,1217.5,0.52216852]
[1760124552286,0.14261418,1222.3,1217.6,0.52216852]
[1760124552485,0.14261418,1222.3,1217.4,0.1426709]
[1760124552781,0.14261418,1222.3,1217.5,0.52260445]
[1760124553085,0.14261418,1222.3,1217.6,0.52260445]
[1760124553282,0.14261418,1222.3,1217.4,0.1426709]
[1760124553487,1.32527103,1222.3,1217.5,0.52304519]
[1760124553686,1.32527103,1222.3,1217.4,0.1426709]
[1760124553687,1.18265685,1222.1,1217.4,0.1426709]
[1760124553880,1.32527103,1222.3,1217.4,0.1426709]
[1760124554287,1.18265685,1222.2,1217.5,0.52350754]
[1760124554488,1.18265685,1222.2,1217.4,0.1426709]
[1760124554783,1.18265685,1222.2,1217.5,0.52350747]
[1760124554986,1.18265685,1222.2,1217.4,0.1426709]
[1760124555291,1.18265685,1222.2,1217.5,0.52351019]
[1760124555482,0.14261418,1222.3,1217.4,0.1426709]
[1760124555683,0.14261418,1222.3,1217.5,0.52396396]
[1760124555885,0.14261418,1222.3,1217.4,0.1426709]
[1760124556087,0.14261418,1222.3,1217.5,0.52395662]
[1760124556287,0.14261418,1222.3,1217.6,0.52395662]
[1760124556484,0.14261418,1222.3,1217.4,0.1426709]
[1760124556685,0.14261418,1222.3,1217.5,0.52430663]
[1760124556885,0.14261418,1222.3,1217.6,0.52430663]
[1760124557088,1.32527103,1222.3,1217.4,0.1426709]
[1760124557287,1.32527103,1222.3,1217.5,0.52450527]
[1760124557488,1.32527103,1222.3,1217.6,0.52450527]
[1760124557685,1.32527103,1222.3,1217.4,0.1426709]
[1760124557884,1.32527103,1222.3,1217.5,0.52450202]
[1760124558189,1.32527103,1222.3,1217.6,0.52450202]
[1760124558386,1.18265685,1222.2,1217.4,0.1426709]
[1760124558588,1.18265685,1221.9,1217.5,0.52469915]
[1760124558790,1.18265685,1221.8,1217.4,0.1426709]
[1760124558987,1.18265685,1221.9,1217.4,0.1426709]
[1760124559895,1.18265685,1221.5,1217.2,0.14275898]
[1760124560286,1.18265685,1221.4,1217.2,0.14275898]
[1760124560792,1.18265685,1221.5,1217.2,0.14275898]
[1760124562088,1.18265685,1221.3,1217.2,0.14275898]
[1760124562389,1.18265685,1220.9,1216.4,0.60729352]
[1760124562589,1.18265685,1220.9,1216.9,0.14280116]
[1760124562794,1.18265685,1221.0,1216.9,0.14280116]
[1760124562991,1.18265685,1221.2,1216.9,0.14280116]
[1760124563190,1.18265685,1221.1,1216.9,0.14280116]
[1760124563394,1.18265685,1221.0,1216.9,0.14280116]
[1760124563595,1.18265685,1220.7,1216.9,0.14280116]
[1760124564292,1.18265685,1220.7,1216.3,0.60729352]
[1760124564494,1.18265685,1220.7,1216.4,0.52612482]
[1760124564793,1.18265685,1220.7,1216.7,0.14284219]
[1760124565000,1.94673086,1221.5,1216.7,0.14284219]
[1760124565001,1.18265685,1220.8,1216.7,0.14284219]
[1760124565197,1.18265685,1220.7,1216.7,0.14284219]
[1760124565699,1.18265685,1220.8,1216.7,0.14284219]
[1760124566300,1.18265685,1220.7,1216.7,0.14284219]
[1760124567504,1.18265685,1220.8,1216.7,0.14284219]
[1760124567704,1.18265685,1220.7,1216.7,0.14284219]
[1760124567902,1.18265685,1220.8,1216.7,0.14284219]
[1760124568108,1.18265685,1221.0,1216.8,0.52715357]
[1760124568404,1.18265685,1221.2,1216.9,0.52715357]
[1760124568608,1.18265685,1221.5,1217.0,0.52715357]
[1760124568806,1.18265685,1221.1,1217.1,0.52715357]
[1760124569006,1.18265685,1221.1,1216.7,0.14284219]
[1760124569202,1.18265685,1221.1,1216.8,0.52748481]
[1760124569406,1.94673086,1222.2,1216.7,0.14284219]
[1760124569407,1.18265685,1221.0,1216.9,0.52748481]
[1760124569604,1.18265685,1221.0,1217.0,0.52748481]
[1760124569806,1.18265685,1221.3,1217.1,0.52773602]
[1760124570006,1.18265685,1221.3,1217.2,0.52773602]
[1760124570309,1.18265685,1221.3,1216.7,0.14284219]
[1760124570603,1.18265685,1220.9,1216.8,0.52786095]
[1760124570808,1.18265685,1220.7,1216.9,0.52786095]
[1760124571006,1.18265685,1220.7,1216.7,0.14284219]
[1760124571205,1.18265685,1220.7,1216.8,0.52791395]
[1760124571403,1.18265685,1220.7,1216.9,0.52791395]
[1760124571606,1.18265685,1220.7,1216.7,0.14284219]
[1760124571905,1.18265685,1220.7,1216.8,0.52788434]
[1760124572107,1.18265685,1220.7,1216.9,0.52788434]
[1760124572309,1.18265685,1221.7,1217.0,0.52788434]
[1760124572611,1.18265685,1220.6,1216.3,0.60729352]
[1760124572810,1.18265685,1220.5,1216.4,1.27808819]
[1760124573009,1.18265685,1220.7,1216.5,0.52798999]
[1760124573309,1.18265685,1220.7,1216.6,0.52798999]
[1760124573509,1.18265685,1220.7,1216.7,0.52798999]
[1760124573708,1.18265685,1220.7,1216.4,0.14280468]
[1760124573908,1.18265685,1220.7,1216.5,0.52802253]
[1760124574104,1.18265685,1220.6,1216.6,0.52802253]
[1760124574409,1.18265685,1220.3,1216.2,0.14286506]
[1760124574709,1.18265685,1220.1,1216.3,0.51599759]
[1760124574909,1.18265685,1220.0,1216.2,0.14286506]
[1760124575405,1.18265685,1220.0,1215.6,0.60243482]
[1760124575610,1.18265685,1219.9,1215.7,1.1183527]
[1760124575909,1.18265685,1219.9,1215.4,0.8075515]
[1760124575910,1.18265685,1219.9,1215.8,0.51591788]
[1760124576109,1.18265685,1219.8,1215.9,0.51591788]
[1760124576303,1.18265685,1219.9,1215.8,0.14293254]
[1760124576505,1.18265685,1219.9,1215.9,0.51583429]
[1760124576704,1.18265685,1219.9,1215.8,0.14293254]
[1760124576905,1.18265685,1219.9,1215.9,0.5158401]
[1760124577110,1.18265685,1220.4,1215.8,0.14293254]
[1760124577411,1.18265685,1220.1,1215.0,0.60243482]
[1760124577606,1.18265685,1220.1,1215.6,0.14294017]
[1760124577810,1.18265685,1219.9,1215.7,0.51575039]
[1760124578011,1.18265685,1220.4,1215.7,0.51575039]
[1760124578712,1.18265685,1220.4,1215.4,0.14293665]
[1760124578912,1.18265685,1219.6,1215.4,0.14293665]
[1760124579106,1.18265685,1219.2,1214.6,0.60243482]
[1760124579409,1.18265685,1219.5,1215.1,0.14297952]
[1760124579608,1.18265685,1219.7,1215.2,0.51542819]
[1760124579907,1.18265685,1219.4,1215.3,0.51542819]
[1760124580107,1.18265685,1219.2,1215.1,0.14297952]
[1760124580411,1.18265685,1219.3,1215.1,0.14297952]
[1760124580612,1.18265685,1219.3,1214.5,0.60243482]
[1760124580814,1.18265685,1219.3,1214.6,0.51519993]
[1760124581013,1.18265685,1219.0,1214.7,0.65823998]
[1760124581209,1.18265685,1219.1,1214.8,0.51562398]
[1760124581412,1.18265685,1219.2,1214.7,0.14304005]
[1760124581617,1.18265685,1219.1,1214.8,0.51488726]
[1760124581812,1.18265685,1219.3,1214.7,0.14304005]
[1760124582215,1.18265685,1219.1,1214.7,0.14304005]
[1760124582415,1.18265685,1219.2,1214.7,0.14304005]
[1760124582612,1.18265685,1219.0,1214.8,0.51458312]
[1760124582816,1.18265685,1219.3,1214.7,0.14304005]
[1760124583012,1.18265685,1219.6,1214.8,0.51462716]
[1760124583318,1.18265685,1218.3,1213.1,0.14314213]
[1760124583513,1.18265685,1218.4,1213.4,0.60243482]
[1760124583812,1.18265685,1218.9,1213.5,1.11633556]
[1760124584012,1.18265685,1218.8,1213.8,0.60243482]
[1760124584213,1.18265685,1218.9,1213.9,0.51390074]
[1760124584419,1.94673086,1220.5,1212.9,1.21132725]
[1760124584420,1.18265685,1219.0,1214.0,0.51390074]
[1760124584616,1.18265685,1218.7,1212.5,0.60243482]
[1760124584918,1.18265685,1218.3,1213.1,0.14315627]
[1760124585112,1.18265685,1218.5,1213.2,0.51364161]
[1760124585514,1.18265685,1218.4,1213.2,0.51364161]
[1760124586015,1.18265685,1218.6,1213.3,0.51364161]
[1760124586212,1.18265685,1218.6,1213.4,0.51364161]
[1760124586419,1.18265685,1218.2,1212.5,0.60243482]
[1760124586717,1.18265685,1218.3,1213.3,0.14316451]
[1760124586914,1.18265685,1217.6,1213.3,0.14316451]
[1760124587112,1.18265685,1217.9,1212.4,0.60243482]
[1760124587413,1.18265685,1217.7,1213.2,0.14324908]
[1760124587816,1.18265685,1218.3,1213.2,0.14324908]
[1760124588116,1.18265685,1218.5,1213.3,0.51159415]
[1760124588317,1.18265685,1218.9,1213.4,0.51105064]
[1760124588510,1.18265685,1218.9,1213.2,0.14324908]
[1760124588713,1.18265685,1218.9,1213.3,0.51103068]
[1760124589011,1.18265685,1218.9,1213.4,0.51103068]
[1760124589211,1.18265685,1219.0,1213.2,0.14324908]
[1760124589413,1.18265685,1218.5,1213.2,0.14324908]
[1760124589716,1.18265685,1218.2,1212.4,0.60243482]
[1760124589912,0.14318366,1217.2,1213.3,0.14318366]
[1760124590916,0.14318366,1217.2,1212.1,0.60243482]
[1760124591118,0.14318366,1217.2,1213.1,0.14323198]
[1760124592322,0.14318366,1217.2,1211.8,0.60243482]
[1760124592521,0.14318366,1217.2,1211.5,0.8075515]
[1760124592522,0.14318366,1217.2,1212.8,0.1432594]
[1760124593622,0.14318366,1217.2,1211.2,0.60243482]
[1760124593822,1.32584051,1217.2,1210.3,0.60243482]
[1760124594022,1.32584051,1217.2,1211.8,0.14333994]
[1760124594023,0.14318366,1217.2,1211.8,0.14333994]
[1760124594623,1.18265685,1217.7,1210.3,0.60243482]
[1760124594825,1.18265685,1217.4,1210.4,0.50665747]
[1760124595123,0.1433999,1215.9,1211.6,0.1433999]
[1760124595325,0.1433999,1215.9,1209.5,0.60243482]
[1760124595520,0.1433999,1215.9,1209.6,0.50544226]
[1760124595724,0.1433999,1215.9,1209.7,0.50544226]
[1760124595922,0.1433999,1215.9,1209.6,0.60243482]
[1760124595923,0.1433999,1215.9,1209.8,0.50544226]
[1760124596126,0.1433999,1215.9,1209.9,0.50544226]
[1760124596325,0.1433999,1215.9,1209.2,0.60243482]
[1760124596625,0.1433999,1215.9,1209.3,1.10657695]
[1760124596821,0.1433999,1215.9,1210.8,0.14348119]
[1760124597022,1.18265685,1216.8,1210.8,0.14348119]
[1760124597220,1.18265685,1217.0,1210.8,0.14348119]
[1760124597420,1.18265685,1216.8,1208.7,0.60243482]
[1760124597625,1.18265685,1217.3,1208.8,0.50278478]
[1760124597825,1.18265685,1216.7,1208.9,0.50278478]
[1760124598123,1.18265685,1217.1,1208.9,0.60243482]
[1760124598322,0.14349421,1214.8,1210.8,0.14350012]
[1760124598525,1.18265685,1217.1,1210.8,0.14350012]
[1760124598820,1.18265685,1217.3,1210.8,0.14350012]
[1760124599019,1.18265685,1217.0,1209.0,0.60243482]
[1760124599222,1.18265685,1217.4,1209.1,0.50138457]
[1760124599421,1.18265685,1217.4,1209.2,0.50138457]
[1760124599621,1.18265685,1217.3,1209.3,0.50138457]
[1760124599820,0.14350723,1215.4,1208.8,0.60243482]
[1760124600023,0.14350723,1215.4,1209.9,0.14350634]
[1760124600229,1.18265685,1216.3,1209.9,0.14350634]
[1760124600926,1.18265685,1216.4,1209.9,0.14350634]
[1760124601125,1.94673086,1217.6,1209.9,0.14350634]
[1760124601126,1.18265685,1216.6,1209.9,0.14350634]
[1760124601324,4.01026429,1219.8,1207.2,0.8075515]
[1760124601325,1.18265685,1216.8,1207.9,0.60243482]
[1760124601526,0.1435845,1215.0,1210.0,0.14358331]
[1760124602426,1.18265685,1217.4,1208.6,0.60243482]
[1760124602727,0.14349184,1213.8,1210.4,0.14349184]
[1760124602926,1.18265685,1218.7,1210.4,0.14349184]
[1760124603125,1.18265685,1218.4,1210.4,0.14349184]
[1760124603324,1.18265685,1218.3,1210.4,0.14349184]
[1760124603525,1.18265685,1218.4,1209.9,0.60243482]
[1760124603729,1.18265685,1218.8,1210.0,0.49812373]
[1760124603928,1.18265685,1219.0,1210.0,1.10055855]
[1760124604227,1.18265685,1219.0,1209.7,0.8075515]
[1760124604228,0.14333286,1216.7,1211.0,0.14333286]
[1760124605025,0.14333286,1216.7,1211.1,0.50381031]
[1760124605227,0.14333286,1216.7,1211.2,0.50381031]
[1760124605528,0.14333286,1216.7,1211.3,0.50381031]
[1760124605732,0.14333286,1216.7,1211.4,0.50381031]
[1760124605933,0.14333286,1216.7,1211.5,0.50381031]
[1760124606132,0.14333286,1216.7,1211.6,0.50381031]
[1760124606332,0.14333286,1216.7,1211.7,0.50381031]
[1760124606660,0.14333286,1216.7,1211.1,0.60243482]
[1760124606831,0.14333286,1216.7,1211.2,0.50406023]
[1760124607034,0.14333286,1216.7,1211.3,0.50406023]
[1760124607234,0.14333286,1216.7,1211.4,0.50406023]
[1760124607534,0.14333286,1216.7,1211.5,0.50406023]
[1760124607734,0.14333286,1216.7,1211.6,0.50406023]
[1760124607934,0.14333286,1216.7,1211.0,0.14333286]
[1760124608133,0.14333286,1216.7,1211.1,0.50442107]
[1760124608333,0.14333286,1216.7,1211.0,0.14333286]
[1760124609539,1.18265685,1218.7,1210.3,0.60243482]
[1760124609737,0.14329597,1215.3,1211.5,0.14329597]
[1760124610239,1.18265685,1218.5,1211.5,0.14329597]
[1760124610434,1.18265685,1219.0,1211.5,0.14329597]
[1760124610634,1.18265685,1218.7,1211.5,0.14329597]
[1760124610835,1.18265685,1219.0,1211.5,0.14329597]
[1760124611242,1.18265685,1219.1,1211.5,0.14329597]
[1760124611442,0.14325203,1217.2,1211.5,0.14329597]
[1760124612138,1.18265685,1218.6,1210.6,0.60243482]
[1760124612343,0.14327532,1215.8,1212.0,0.14327532]
[1760124612740,1.18265685,1219.2,1212.0,0.14327532]
[1760124612944,0.14324289,1215.3,1212.0,0.14327532]
[1760124613145,1.18265685,1219.8,1212.0,0.14327532]
[1760124613442,0.14317187,1215.7,1212.1,0.50655512]
[1760124613745,1.18265685,1219.9,1212.2,0.50655512]
[1760124613946,1.18265685,1219.6,1212.0,0.14327532]
[1760124614147,0.14316068,1215.4,1212.0,0.14327532]
[1760124614343,1.18265685,1219.4,1212.0,0.14327532]
[1760124614543,0.14320251,1215.1,1212.0,0.14327532]
[1760124614944,1.18265685,1219.1,1212.0,0.14327532]
[1760124615251,0.1432143,1215.3,1212.0,0.14327532]
[1760124615546,1.18265685,1219.3,1212.0,0.14327532]
[1760124615748,0.14321312,1215.2,1212.0,0.14327532]
[1760124616049,1.18265685,1219.7,1212.1,0.50760838]
[1760124616249,0.14318218,1215.8,1212.2,0.50760838]
[1760124616544,1.18265685,1219.8,1212.3,0.50760838]
[1760124616750,1.18265685,1219.5,1212.0,0.14327532]
[1760124616941,0.14313301,1215.6,1212.0,0.14327532]
[1760124617144,1.18265685,1219.5,1212.0,0.14327532]
[1760124617448,0.14322137,1214.9,1212.0,0.14327532]
[1760124617649,1.18265685,1219.5,1212.1,0.50881138]
[1760124617944,0.14321606,1215.3,1212.2,0.50884773]
[1760124618146,0.14321606,1215.3,1212.3,0.50884773]
[1760124618346,1.18265685,1219.6,1212.4,0.50884773]
[1760124618548,0.14316746,1215.3,1212.5,0.50884773]
[1760124618747,1.18265685,1218.8,1212.0,0.14327532]
[1760124619050,1.94673086,1220.1,1212.0,0.14327532]
[1760124619051,0.1432031,1214.7,1212.0,0.14327532]
[1760124619453,1.18265685,1218.7,1212.1,0.51015443]
[1760124619649,0.143242,1214.9,1212.0,0.14327532]
[1760124619850,1.18265685,1218.4,1212.0,0.14327532]
[1760124620255,0.14324731,1214.6,1212.0,0.14327532]
[1760124620454,1.18265685,1219.0,1212.1,0.51069292]
[1760124620649,1.94673086,1220.3,1212.0,0.14327532]
[1760124620650,0.14325674,1214.6,1212.0,0.14327532]
[1760124620957,1.18265685,1218.7,1212.0,0.14327532]
[1760124621252,0.14326795,1214.5,1212.0,0.14327532]
[1760124621558,1.18265685,1218.5,1212.0,0.14327532]
[1760124621756,0.14326087,1214.7,1212.0,0.14327532]
[1760124622062,1.18265685,1218.5,1212.0,0.14327532]
[1760124622354,0.14326323,1214.6,1212.0,0.14327532]
[1760124622757,1.18265685,1218.6,1212.0,0.14327532]
[1760124622957,0.14328535,1214.3,1212.0,0.14327532]
[1760124623252,1.18265685,1217.7,1212.0,0.14327532]
[1760124623462,0.14330276,1214.3,1212.0,0.14327532]
[1760124623651,1.18265685,1217.8,1212.0,0.14327532]
[1760124623958,1.18265685,1217.9,1212.0,0.14327532]
[1760124624153,0.14331368,1216.4,1212.0,0.14327532]
[1760124626466,0.14331368,1216.4,1212.1,0.51353571]
[1760124626653,0.14331368,1216.4,1212.0,0.14327532]
[1760124626859,0.14331368,1216.4,1212.1,0.51349689]
[1760124627054,0.14331368,1216.4,1212.2,1.09764329]
[1760124627369,0.14331368,1216.4,1212.3,0.51349689]
[1760124627559,0.14331368,1216.4,1212.4,1.09764329]
[1760124627754,0.14331368,1216.4,1212.5,1.09764329]
[1760124627954,0.14331368,1216.4,1212.8,0.5841464]
[1760124628257,0.14331368,1216.4,1213.1,0.5841464]
[1760124629257,0.14331368,1216.4,1213.2,1.09764329]
[1760124629454,0.14331368,1216.4,1213.3,0.51349689]
[1760124629653,0.14331368,1216.4,1213.4,0.51349689]
[1760124629856,0.14331368,1216.4,1213.5,0.51349689]
[1760124630056,0.14331368,1216.4,1212.8,0.5841464]
[1760124630264,0.14331368,1216.4,1212.9,1.09944785]
[1760124630554,0.14331368,1216.4,1213.1,0.5841464]
[1760124630955,0.14331368,1216.4,1213.3,0.5841464]
[1760124631454,0.14331368,1216.4,1213.5,0.5841464]
[1760124631654,0.14331368,1216.4,1213.6,1.09944785]
[1760124631953,0.14331368,1216.4,1213.7,0.51530145]
[1760124632153,0.14331368,1216.4,1213.8,0.51530145]
[1760124632358,0.14331368,1216.4,1213.3,0.5841464]
[1760124632654,0.14331368,1216.4,1213.5,0.5841464]
[1760124632856,0.14331368,1216.4,1213.6,0.51732822]
[1760124633052,0.14331368,1216.4,1213.7,0.51732822]
[1760124633352,0.14331368,1216.4,1213.8,0.51732822]
[1760124633553,0.14331368,1216.4,1213.9,0.51732822]
[1760124633752,0.14331368,1216.4,1213.4,0.5841464]
[1760124634255,0.14331368,1216.4,1213.5,0.51800639]
[1760124634559,0.14331368,1216.4,1213.6,0.51800639]
[1760124634756,0.14331368,1216.4,1213.7,0.51800639]
[1760124634953,0.14331368,1216.4,1213.8,0.51800639]
[1760124635157,0.14331368,1216.4,1213.9,0.51800639]
[1760124635356,0.14331368,1216.4,1214.0,0.51800639]
[1760124635554,0.14331368,1216.4,1213.4,0.8075515]
[1760124635555,0.14331368,1216.4,1214.1,0.51800639]
[1760124635854,0.14331368,1216.4,1214.2,0.51800639]
[1760124636055,0.14331368,1216.4,1214.3,0.51800639]
[1760124636256,0.14331368,1216.4,1214.4,0.51800639]
[1760124636456,0.14331368,1216.4,1213.8,0.5841464]
[1760124636657,0.14331368,1216.4,1213.9,0.52514053]
[1760124636860,0.14331368,1216.4,1214.0,0.52514053]
[1760124637056,0.14331368,1216.4,1214.1,0.52514053]
[1760124637257,0.14331368,1216.4,1214.2,0.52514053]
[1760124637459,0.14331368,1216.4,1214.3,0.52514053]
[1760124637660,0.14331368,1216.4,1214.4,0.52514053]
[1760124637860,0.14331368,1216.4,1214.5,0.52514053]
[1760124638061,0.14331368,1216.4,1214.6,0.52514053]
[1760124638362,0.14331368,1216.4,1214.1,0.5841464]
[1760124638363,0.14331368,1216.4,1214.7,0.52514053]
[1760124638558,0.14331368,1216.4,1214.3,0.5841464]
[1760124638858,0.14331368,1216.4,1214.4,1.10993192]
[1760124639060,0.14331368,1216.4,1214.5,0.52578552]
[1760124639260,0.14331368,1216.4,1214.6,0.52578552]
[1760124639466,0.14331368,1216.4,1214.7,0.52578552]
[1760124639660,0.14331368,1216.4,1214.8,0.52578552]
[1760124639862,0.14331368,1216.4,1214.9,0.52578552]
[1760124640060,0.14331368,1216.4,1215.0,0.52578552]
[1760124640260,0.14331368,1216.4,1214.6,0.5841464]
[1760124640464,0.14331368,1216.4,1214.7,0.52592504]
[1760124640661,1.18265685,1219.2,1214.8,0.52592504]
[1760124640865,1.18265685,1219.3,1214.9,0.52592504]
[1760124641066,0.14301948,1216.8,1215.0,0.52592504]
[1760124641267,1.18265685,1219.4,1215.1,0.52592504]
[1760124641465,0.14301595,1216.7,1215.2,0.52592504]
[1760124641667,0.14301595,1216.7,1215.3,0.52592504]
[1760124641970,0.14298158,1216.9,1215.4,0.52569]
[1760124642164,0.14298158,1216.9,1214.8,0.5841464]
[1760124642366,0.14298158,1216.9,1214.9,0.52552782]
[1760124642563,0.14298158,1216.9,1215.0,0.52552782]
[1760124642767,0.14298158,1216.9,1214.8,0.5841464]
[1760124642768,0.14298158,1216.9,1215.1,0.52552782]
[1760124642966,0.14298158,1216.9,1215.2,0.52552782]
[1760124643268,0.14298158,1216.9,1214.2,0.8075515]
[1760124643269,0.14298158,1216.9,1214.5,0.5841464]
[1760124643469,0.14298158,1216.9,1214.6,0.52530895]
[1760124643769,0.14298158,1216.9,1214.7,0.52530895]
[1760124643967,0.14298158,1216.9,1214.8,0.52530895]
[1760124644166,0.14298158,1216.9,1214.9,0.52530895]
[1760124644365,0.14298158,1216.9,1214.3,0.5841464]
[1760124644564,0.14298158,1216.9,1214.4,0.52525419]
[1760124644768,0.14298158,1216.9,1214.5,0.52525419]
[1760124644968,0.14298158,1216.9,1214.6,0.52525419]
[1760124645164,0.14298158,1216.9,1214.1,0.5841464]
[1760124645367,0.14298158,1216.9,1214.2,0.52523405]
[1760124645565,0.14298158,1216.9,1214.3,0.52523405]
[1760124645769,0.14298158,1216.9,1214.4,0.52523405]
[1760124645965,0.14298158,1216.9,1214.5,0.52523405]
[1760124646264,0.14298158,1216.9,1214.6,0.52523405]
[1760124646570,0.14298158,1216.9,1213.7,0.5841464]
[1760124646864,0.14298158,1216.9,1213.8,0.52521745]
[1760124647069,0.14298158,1216.9,1213.9,0.52521745]
[1760124647265,0.14298158,1216.9,1214.0,1.10936385]
[1760124647468,0.14298158,1216.9,1214.1,0.52521745]
[1760124647666,0.14298158,1216.9,1214.2,0.52521745]
[1760124647869,0.14298158,1216.9,1214.3,0.52521745]
[1760124648066,1.18265685,1219.5,1214.4,0.52521745]
[1760124648371,1.18265685,1219.5,1214.5,0.52521745]
[1760124648565,1.18265685,1219.5,1211.8,2.00020695]
[1760124648566,1.18265685,1219.4,1214.6,0.52521745]
[1760124648771,1.18265685,1219.3,1214.7,0.52482409]
[1760124648967,1.18265685,1219.3,1214.8,0.52482409]
[1760124649168,1.18265685,1219.3,1214.4,0.5841464]
[1760124649371,1.18265685,1219.6,1214.5,0.52466988]
[1760124649568,1.18265685,1219.6,1214.6,0.52466988]
[1760124649770,1.18265685,1219.6,1213.7,0.5841464]
[1760124649968,1.18265685,1219.6,1213.8,0.52483796]
[1760124650267,1.18265685,1219.6,1213.9,0.52483796]
[1760124650470,2.72981337,1222.2,1214.0,0.52483796]
[1760124650471,1.18265685,1219.7,1214.0,0.52483796]
[1760124650670,1.18265685,1219.8,1214.1,0.52483796]
[1760124650869,1.18265685,1219.6,1214.4,0.5841464]
[1760124651070,1.18265685,1219.7,1214.5,1.10898436]
[1760124651274,1.18265685,1219.9,1214.7,0.5841464]
[1760124651573,1.18265685,1219.6,1214.8,1.10898436]
[1760124651773,1.18265685,1219.8,1214.9,1.10898436]
[1760124651975,1.18265685,1219.8,1215.0,0.52483796]
[1760124652169,1.18265685,1219.8,1214.9,0.5841464]
[1760124652170,1.18265685,1219.8,1215.1,0.52483796]
[1760124652370,1.18265685,1219.8,1214.9,0.5841464]
[1760124652371,1.18265685,1220.3,1215.2,0.52483796]
[1760124652672,1.18265685,1220.4,1215.3,0.52483796]
[1760124652871,1.18265685,1220.5,1215.4,0.52483796]
[1760124653070,0.14295485,1219.2,1214.7,0.5841464]
[1760124653268,0.14295485,1219.2,1214.8,0.52376304]
[1760124653474,0.14295485,1219.2,1214.9,0.52376304]
[1760124653676,0.14295485,1219.2,1215.0,1.10790944]
[1760124653869,0.14295485,1219.2,1215.1,0.52376304]
[1760124654073,0.14295485,1219.2,1215.2,0.52376304]
[1760124654271,0.14295485,1219.2,1215.3,0.52376304]
[1760124654469,0.14295485,1219.2,1215.4,0.52376304]
[1760124654673,0.14295485,1219.2,1215.0,0.5841464]
[1760124654874,0.14295485,1219.2,1215.1,0.52356116]
[1760124655075,0.14295485,1219.2,1215.2,0.52356116]
[1760124655270,0.14295485,1219.2,1215.3,0.52356116]
[1760124655574,0.14295485,1219.2,1215.4,0.52356116]
[1760124655873,0.14295485,1219.2,1213.8,2.00020695]
[1760124655874,0.14295485,1219.2,1215.5,1.10770756]
[1760124656072,0.14295485,1219.2,1215.6,0.52356116]
[1760124656268,0.14295485,1219.2,1215.7,0.52356116]
[1760124656471,0.14295485,1219.2,1215.8,0.52356116]
[1760124656675,0.14295485,1219.2,1215.9,0.52356116]
[1760124656974,0.14295485,1219.2,1216.0,0.52356116]
[1760124657169,0.14295485,1219.2,1216.1,0.52356116]
[1760124657371,0.14295485,1219.2,1215.4,0.5841464]
[1760124657576,0.14295485,1219.2,1215.5,0.52397185]
[1760124657772,0.14295485,1219.2,1215.6,0.52397185]
[1760124658073,0.14295485,1219.2,1214.7,0.5841464]
[1760124658274,0.14295485,1219.2,1214.8,1.1081049]
[1760124658473,0.14295485,1219.2,1214.9,0.5239585]
[1760124658871,0.14295485,1219.2,1214.9,1.1081049]
[1760124659175,0.14295485,1219.2,1215.0,1.1081049]
[1760124659370,0.14295485,1219.2,1215.1,0.5239585]
[1760124659775,0.14295485,1219.2,1215.2,0.5239585]
[1760124659976,0.14295485,1219.2,1215.3,0.5239585]
[1760124660280,0.14295485,1219.2,1215.4,0.5239585]
[1760124660476,0.14295485,1219.2,1215.5,0.5239585]
[1760124660772,0.14295485,1219.2,1215.6,0.5239585]
[1760124660974,0.14295485,1219.2,1215.7,0.5239585]
[1760124661276,0.14295485,1219.2,1215.8,1.1081049]
[1760124661473,0.14295485,1219.2,1215.9,0.5239585]
[1760124661672,0.14295485,1219.2,1216.0,1.1081049]
[1760124661977,0.14295485,1219.2,1216.1,0.5239585]
[1760124662172,0.14295485,1219.2,1216.2,0.5239585]
[1760124662377,0.14295485,1219.2,1216.3,0.5239585]
[1760124662578,0.14295485,1219.2,1216.4,0.5239585]
[1760124662773,0.14295485,1219.2,1215.9,0.5841464]
[1760124663078,0.14295485,1219.2,1216.0,0.52599522]
[1760124663277,0.14295485,1219.2,1216.1,0.52599522]
[1760124663576,0.14295485,1219.2,1216.2,0.52599522]
[1760124663774,0.14295485,1219.2,1215.6,0.5841464]
[1760124663978,0.14295485,1219.2,1215.7,0.52611806]
[1760124664176,0.14295485,1219.2,1215.8,0.52611806]
[1760124664474,0.14295485,1219.2,1215.9,0.52611806]
[1760124664678,0.14295485,1219.2,1216.0,0.52611806]
[1760124664877,0.14295485,1219.2,1215.4,0.5841464]
[1760124665076,0.14295485,1219.2,1215.5,1.1084018]